lending/lending_fUSD_20251022
["ID","MTS","AMOUNT","RATE_DAILY","PERIOD"]
[392031345,1761112245632,-77.22817523,0.00029959,2]
[392031346,1761112245959,-665.92813387,0.00029959,2]
[392031347,1761112245969,-713.54,0.00029964,2]
[392031348,1761112245979,-568.06584401,0.00029987,2]
[392031349,1761112245988,-2470.01580411,0.00029995,2]
[392031356,1761112367303,267.79291212,0.00030137,120]
[392031357,1761112383009,156.020063,0.00034271,30]
[392031362,1761112743257,2798.82795145,0.00034273,30]
[392031363,1761113132357,-89.03,0.00015096,2]
[392031364,1761113132370,-121.94,0.00015096,2]
[392031365,1761113132380,-89.03,0.00016606,2]
[392031376,1761113225101,598.07158678,0.00034274,30]
[392031398,1761113431674,-178.36,0.00025211,2]
[392031399,1761113431684,-150.0,0.00025928,2]
[392031400,1761113431693,-157.42,0.00027397,2]
[392031401,1761113431703,-152.0,0.00027671,3]
[392031402,1761113431713,-2592.0,0.00029063,2]
[392031403,1761113431723,-557.0,0.00029063,2]
[392031404,1761113431732,-6453.0,0.00029063,2]
[392031405,1761113431741,-152.0,0.00029076,4]
[392031406,1761113431751,-273.37151336,0.00029091,2]
[392031407,1761113431761,-3420.12,0.00029124,2]
[392031408,1761113431771,-1292.79959273,0.00029204,4]
[392031409,1761113431781,-284.87,0.00029471,2]
[392031410,1761113431790,-666.0,0.00029471,3]
[392031411,1761113431799,-1200.0,0.00029699,2]
[392031412,1761113431808,-300.0,0.00029699,2]
[392031413,1761113431817,-300.0,0.00029699,2]
[392031414,1761113431826,-2857.7497,0.000297,2]
[392031415,1761113431836,-5888.0,0.00029753,2]
[392031416,1761113431845,-407.81264626,0.00029791,2]
[392031417,1761113431854,-6622.3695,0.00029792,2]
[392031418,1761113431864,-309.7567922,0.00029798,2]
[392031419,1761113431873,-600.0,0.00029881,2]
[392031420,1761113431883,-389.76062678,0.00029882,2]
[392031421,1761113431893,-822.965,0.00029882,24]
[392031422,1761113431903,-378.68,0.00029882,7]
[392031423,1761113431912,-150.0,0.00029882,2]
[392031424,1761113431922,-254.981,0.00029882,2]
[392031425,1761113431932,-250.0,0.00029882,2]
[392031426,1761113431941,-188.259,0.00029882,2]
[392031427,1761113431951,-150.0,0.00029882,2]
[392031428,1761113431960,-150.522,0.00029882,2]
[392031429,1761113431978,-2052.0,0.00029882,2]
[392031430,1761113431990,-572.0,0.00029882,2]
[392031431,1761113432000,-3411.0,0.00029882,2]
[392031432,1761113432010,-818.0,0.00029882,2]
[392031433,1761113432019,-1311.0,0.00029882,2]
[392031434,1761113432029,-605.0,0.00029882,2]
[392031435,1761113432038,-1591.0,0.00029882,2]
[392031436,1761113432047,-1269.0,0.00029882,2]
[392031437,1761113432057,-817.0,0.00029882,2]
[392031438,1761113432069,-2548.0,0.00029882,2]
[392031440,1761113432079,-1000.0,0.0002989,2]
[392031442,1761113432088,-500.0,0.00029891,2]
[392031444,1761113432098,-430.24733947,0.00029891,2]
[392031446,1761113432109,-500.0,0.00029891,2]
[392031448,1761113432119,-500.0,0.00029891,2]
[392031449,1761113432128,-500.0,0.00029891,2]
[392031450,1761113432138,-500.0,0.00029891,2]
[392031451,1761113432148,-500.0,0.00029891,2]
[392031452,1761113432157,-500.0,0.00029891,2]
[392031453,1761113432166,-500.0,0.00029891,2]
[392031454,1761113432175,-500.0,0.00029891,2]
[392031455,1761113432185,-500.0,0.00029891,2]
[392031456,1761113432194,-207.26958028,0.00029891,2]
[392031457,1761113432752,-292.73041972,0.00029891,2]
[392031458,1761113432762,-500.0,0.00029891,2]
[392031459,1761113432771,-500.0,0.00029891,2]
[392031460,1761113432782,-500.0,0.00029891,2]
[392031461,1761113432791,-500.0,0.00029891,2]
[392031462,1761113432801,-500.0,0.00029891,2]
[392031463,1761113432811,-500.0,0.00029891,2]
[392031464,1761113432820,-500.0,0.00029891,2]
[392031465,1761113432829,-500.0,0.00029891,2]
[392031466,1761113432838,-361.30582209,0.00029891,2]
[392031467,1761113432848,-500.0,0.00029891,2]
[392031468,1761113432857,-390.46375819,0.00029891,2]
[392031636,1761113439758,-162.01055293,0.000257,2]
[392031637,1761113439768,-198.58580669,0.00029891,2]
[392031638,1761113439778,-500.0,0.00029891,2]
[392031639,1761113439788,-500.0,0.00029891,2]
[392031640,1761113439798,-500.0,0.00029891,2]
[392031641,1761113439807,-500.0,0.00029891,2]
[392031642,1761113439816,-500.0,0.00029891,2]
[392031643,1761113439826,-500.0,0.00029891,2]
[392031644,1761113439835,-500.0,0.00029891,2]
[392031645,1761113439844,-500.0,0.00029891,2]
[392031646,1761113439854,-605.95485511,0.00029891,2]
[392031647,1761113439864,-500.0,0.00029891,2]
[392031648,1761113439874,-453.82376509,0.00029891,2]
[392031649,1761113439889,-46.17623491,0.00029891,2]
[392031650,1761113439898,-500.0,0.00029891,2]
[392031651,1761113439907,-219.85539161,0.00029891,2]
[392031652,1761113439917,-77182.7540063,0.00029892,2]
[392031653,1761113439926,-2843.5335903,0.00029892,2]
[392031654,1761113439935,-787.219293,0.00029892,2]
[392031655,1761113439944,-126.06980512,0.00029892,2]
[392031656,1761113439962,-205.37131488,0.00029892,2]
[392031657,1761113439971,-190.80325287,0.00029892,2]
[392031658,1761113439981,-250.73928116,0.0002993,2]
[392031659,1761113439990,-3691.33315741,0.00029936,2]
[392031660,1761113440046,-1308.66684259,0.00029936,2]
[392031661,1761113440055,-318.79,0.00029975,30]
[392031662,1761113440069,-150.0,0.00029981,2]
[392031663,1761113440078,-281.94824978,0.00029995,2]
[392031664,1761113440087,-151.0,0.00029995,2]
[392031665,1761113440096,-1425.0,0.00030073,2]
[392031666,1761113440107,-2274.18,0.00030093,2]
[392031667,1761113440117,-1000.0,0.00030093,2]
[392031668,1761113440127,-773.0,0.00030104,2]
[392031669,1761113440136,-4000.0,0.00030137,30]
[392031670,1761113440148,-378.68,0.00030156,7]
[392031671,1761113440157,-210.97,0.00030192,2]
[392031672,1761113440166,-500.0,0.00030203,2]
[392031673,1761113440176,-226.5697955,0.00030203,2]
[392031674,1761113440185,-773.0,0.00030217,2]
[392031675,1761113440194,-2751.0,0.00030239,120]
[392031676,1761113440203,-1249.22000049,0.00030241,15]
[392031677,1761113440213,-500.0,0.00030258,2]
[392031678,1761113440223,-500.0,0.00030313,2]
[392031679,1761113440231,-1087.0,0.00030313,2]
[392031680,1761113440241,-773.0,0.00030313,7]
[392031681,1761113440250,-500.0,0.00030367,2]
[392031682,1761113440259,-773.0,0.00030394,7]
[392031683,1761113440268,-500.0,0.00030422,2]
[392031684,1761113440277,-378.68,0.0003043,7]
[392031685,1761113440287,-1425.0,0.00030444,2]
[392031686,1761113440296,-951.81635042,0.00030447,2]
[392031687,1761113440307,-276.56500013,0.00030447,2]
[392031688,1761113440336,-1863.61864945,0.00030447,2]
[392031689,1761113440345,-500.0,0.00030468,2]
[392031690,1761113440354,-773.0,0.00030468,2]
[392031691,1761113440364,-500.0,0.00030477,2]
[392031692,1761113440373,-152.0,0.0003048,5]
[392031693,1761113440383,-166.66,0.00030488,30]
[392031694,1761113440392,-776.0,0.00030501,7]
[392031695,1761113440401,-500.0,0.00030523,2]
[392031696,1761113440410,-500.0,0.00030532,2]
[392031697,1761113440419,-175.31,0.00030571,2]
[392031698,1761113440429,-500.0,0.00030578,2]
[392031699,1761113440438,-500.0,0.00030587,2]
[392031700,1761113440447,-500.0,0.00030632,2]
[392031701,1761113440456,-626.0,0.00030641,2]
[392031702,1761113440466,-505.29419297,0.00030641,2]
[392031703,1761113440476,-500.0,0.00030687,2]
[392031704,1761113440485,-2857.74971,0.000307,2]
[392031705,1761113440494,-378.68,0.00030704,7]
[392031706,1761113440503,-500.0,0.00030742,2]
[392031707,1761113440512,-1425.0,0.00030786,2]
[392031708,1761113440521,-500.0,0.00030797,2]
[392031709,1761113440531,-626.0,0.00030803,7]
[392031710,1761113440540,-157.42,0.00030822,2]
[392031711,1761113440738,-202.26449881,0.00030852,2]
[392031712,1761113440748,-167.0563543,0.00030886,2]
[392031713,1761113440757,-626.0,0.00030939,2]
[392031714,1761113440767,-378.68,0.00030978,7]
[392031715,1761113440777,-626.0,0.00030999,2]
[392031716,1761113440786,-156.0,0.00031,120]
[392031717,1761113440796,-162.0,0.00031,120]
[392031718,1761113440806,-446.06337825,0.00031,2]
[392031739,1761113442726,-749.21916858,0.00031,2]
[392031740,1761113442735,-5138.0,0.00031,7]
[392031741,1761113442745,-153.40824967,0.00031,2]
[392031742,1761113442754,-281.94824978,0.00031,2]
[392031743,1761113442763,-166.66,0.0003108,30]
[392031744,1761113442774,-626.0,0.00031114,7]
[392031745,1761113442784,-773.0,0.00031184,2]
[392031746,1761113442793,-773.0,0.00031222,7]
[392031747,1761113442802,-1960.43695902,0.00031328,2]
[392031748,1761113442811,-158.17,0.00031526,15]
[392031749,1761113442821,-1425.0,0.00031624,2]
[392031750,1761113442830,-158.18,0.00031626,15]
[392031751,1761113442840,-500.0,0.00031643,15]
[392031752,1761113442849,-175.31,0.00031676,2]
[392031753,1761113442858,-2857.74971,0.000317,2]
[392031754,1761113442867,-773.0,0.00031746,2]
[392031755,1761113442877,-1000.0,0.0003179,2]
[392031756,1761113442886,-249.49007831,0.00031798,2]
[392031757,1761113442896,-632.87822284,0.00031798,2]
[392031758,1761113442905,-200.18932523,0.00031798,2]
[392031759,1761113442914,-12469.88458391,0.00031799,2]
[392031762,1761113443263,-3972.09929284,0.00031799,2]
[392031763,1761113443290,-220.72679222,0.00031799,2]
[392031768,1761113446014,-1084.7837,0.00031526,2]
[392031770,1761113461856,300.0,0.000253,120]
[392031771,1761113461972,359.71569895,0.00023582,120]
[392031772,1761113463569,1000.0,0.000253,120]
[392031773,1761113464704,195.0,0.000253,120]
[392031774,1761113465349,2500.0,0.000253,120]
[392031775,1761113465439,2500.0,0.00023582,120]
[392031778,1761113539677,578.20924308,0.00034274,30]
[392031802,1761113618300,3000.0,0.0003,120]
[392031812,1761114259039,500.0,0.00034281,120]
[392031813,1761114259109,500.0,0.00034281,120]
[392031814,1761114259511,500.0,0.00034281,120]
[392031815,1761114259696,500.0,0.00034281,120]
[392031816,1761114259765,500.0,0.00034281,120]
[392031817,1761114259848,500.0,0.00034281,120]
[392031818,1761114259922,500.0,0.00034281,120]
[392031819,1761114260124,500.0,0.00034281,120]
[392031820,1761114260191,500.0,0.00034281,120]
[392031821,1761114260254,500.0,0.00034281,120]
[392031822,1761114260324,500.0,0.00034281,120]
[392031823,1761114260380,500.0,0.00034281,120]
[392031824,1761114260433,500.0,0.00034281,120]
[392031825,1761114260497,500.0,0.00034281,120]
[392031826,1761114260559,500.0,0.00034281,120]
[392031827,1761114260617,500.0,0.00034281,120]
[392031828,1761114260673,500.0,0.00034281,120]
[392031829,1761114260729,500.0,0.00034281,120]
[392031830,1761114260787,500.0,0.00034281,120]
[392031831,1761114260845,500.0,0.00034281,120]
[392031832,1761114260904,500.0,0.00034281,120]
[392031833,1761114260970,500.0,0.00034281,120]
[392031834,1761114261036,500.0,0.00034281,120]
[392031835,1761114261095,500.0,0.00034281,120]
[392031836,1761114261157,500.0,0.00034281,120]
[392031837,1761114261239,500.0,0.00034281,120]
[392031838,1761114261299,461.03505671,0.00034281,120]
[392031839,1761114261353,500.0,0.00034281,120]
[392031840,1761114261411,500.0,0.00034281,120]
[392031841,1761114261466,500.0,0.00034281,120]
[392031842,1761114261521,500.0,0.00034281,120]
[392031843,1761114261580,500.0,0.00034281,120]
[392031844,1761114261638,500.0,0.00034281,120]
[392031845,1761114261803,500.0,0.00034281,120]
[392031846,1761114261864,500.0,0.00034281,120]
[392031847,1761114261928,645.59,0.00034281,120]
[392031848,1761114262079,500.0,0.00034281,120]
[392031849,1761114262140,500.0,0.00034281,120]
[392031850,1761114262313,500.0,0.00034281,120]
[392031851,1761114262385,500.0,0.00034281,120]
[392031852,1761114262589,500.0,0.00034281,120]
[392031853,1761114262651,500.0,0.00034281,120]
[392031854,1761114262869,500.0,0.00034281,120]
[392031855,1761114262939,500.0,0.00034281,120]
[392031856,1761114263051,590.21,0.00034281,120]
[392031857,1761114263132,600.0,0.00034281,120]
[392031858,1761114263264,500.0,0.00034281,120]
[392031859,1761114263365,500.0,0.00034281,120]
[392031860,1761114263513,151.3362965,0.00034281,120]
[392031861,1761114263619,500.0,0.00034281,120]
[392031862,1761114263683,590.21,0.00034281,120]
[392031863,1761114263857,500.0,0.00034281,120]
[392031864,1761114263920,590.21,0.00034281,120]
[392031865,1761114264169,590.21,0.00034281,120]
[392031866,1761114264372,590.21,0.00034281,120]
[392031867,1761114264644,202.31168395,0.00034281,120]
[392031868,1761114264705,590.21,0.00034281,120]
[392031869,1761114264764,963.88,0.00034281,120]
[392031870,1761114264875,590.21,0.00034281,120]
[392031871,1761114264981,963.88,0.00034281,120]
[392031872,1761114265132,590.21,0.00034281,120]
[392031873,1761114265222,963.88,0.00034281,120]
[392031874,1761114265364,500.0,0.00034281,120]
[392031875,1761114265420,590.21,0.00034281,120]
[392031876,1761114265476,500.0,0.00034281,120]
[392031877,1761114265531,963.88,0.00034281,120]
[392031878,1761114265610,500.0,0.00034281,120]
[392031879,1761114265668,590.21,0.00034281,120]
[392031880,1761114265725,500.0,0.00034281,120]
[392031881,1761114265849,963.88,0.00034281,120]
[392031882,1761114265916,590.21,0.00034281,120]
[392031883,1761114265981,500.0,0.00034281,120]
[392031884,1761114266228,639.18203627,0.00034281,120]
[392031885,1761114266288,963.88,0.00034281,120]
[392031886,1761114266344,590.21,0.00034281,120]
[392031887,1761114266397,500.0,0.00034281,120]
[392031888,1761114266624,963.88,0.00034281,120]
[392031889,1761114266705,500.0,0.00034281,120]
[392031890,1761114266760,590.21,0.00034281,120]
[392031891,1761114266815,472.96236837,0.00034281,120]
[392031892,1761114266871,590.21,0.00034281,120]
[392031893,1761114266931,963.88,0.00034281,120]
[392031894,1761114266990,500.0,0.00034281,120]
[392031895,1761114267046,590.21,0.00034281,120]
[392031896,1761114267102,963.88,0.00034281,120]
[392031897,1761114267161,500.0,0.00034281,120]
[392031898,1761114267219,590.21,0.00034281,120]
[392031899,1761114267282,963.88,0.00034281,120]
[392031900,1761114267351,500.0,0.00034281,120]
[392031901,1761114267426,590.21,0.00034281,120]
[392031902,1761114267483,963.88,0.00034281,120]
[392031903,1761114267647,500.0,0.00034281,120]
[392031904,1761114267725,963.88,0.00034281,120]
[392031905,1761114267803,590.21,0.00034281,120]
[392031906,1761114267898,500.0,0.00034281,120]
[392031907,1761114267992,963.88,0.00034281,120]
[392031908,1761114268089,786.29,0.00034281,120]
[392031909,1761114268154,590.21,0.00034281,120]
[392031910,1761114268561,500.0,0.00034281,120]
[392031911,1761114268620,963.88,0.00034281,120]
[392031912,1761114268677,786.29,0.00034281,120]
[392031913,1761114268741,590.21,0.00034281,120]
[392031914,1761114268801,500.0,0.00034281,120]
[392031915,1761114268864,963.88,0.00034281,120]
[392031916,1761114268935,624.33308433,0.00034281,120]
[392031917,1761114268996,500.0,0.00034281,120]
[392031918,1761114269058,786.29,0.00034281,120]
[392031919,1761114269115,590.21,0.00034281,120]
[392031920,1761114269172,963.88,0.00034281,120]
[392031921,1761114269228,786.29,0.00034281,120]
[392031922,1761114269293,590.21,0.00034281,120]
[392031923,1761114269354,500.0,0.00034281,120]
[392031924,1761114269445,963.88,0.00034281,120]
[392031925,1761114269500,786.29,0.00034281,120]
[392031926,1761114269557,590.21,0.00034281,120]
[392031927,1761114269619,500.0,0.00034281,120]
[392031928,1761114269676,963.88,0.00034281,120]
[392031929,1761114269742,786.29,0.00034281,120]
[392031930,1761114269805,590.39594275,0.00034281,120]
[392031931,1761114269865,500.0,0.00034281,120]
[392031932,1761114269928,963.88,0.00034281,120]
[392031933,1761114270019,786.29,0.00034281,120]
[392031934,1761114270091,500.0,0.00034281,120]
[392031935,1761114270192,963.88,0.00034281,120]
[392031936,1761114270253,786.29,0.00034281,120]
[392031937,1761114270321,159.5782014,0.00034281,120]
[392031938,1761114270426,963.88,0.00034281,120]
[392031939,1761114270480,786.29,0.00034281,120]
[392031940,1761114270538,963.88,0.00034281,120]
[392031941,1761114270594,786.29,0.00034281,120]
[392031942,1761114270658,963.88,0.00034281,120]
[392031943,1761114270714,786.29,0.00034281,120]
[392031944,1761114271078,963.88856258,0.00034281,120]
[392031945,1761114271138,786.29,0.00034281,120]
[392031946,1761114271200,786.29,0.00034281,120]
[392031947,1761114271276,500.0,0.00034281,120]
[392031948,1761114271389,786.29,0.00034281,120]
[392031949,1761114271491,500.0,0.00034281,120]
[392031950,1761114271675,786.29,0.00034281,120]
[392031951,1761114271742,500.0,0.00034281,120]
[392031952,1761114271922,786.29,0.00034281,120]
[392031953,1761114272000,500.0,0.00034281,120]
[392031954,1761114272181,786.29,0.00034281,120]
[392031955,1761114272339,603.29,0.00034281,120]
[392031956,1761114272406,500.0,0.00034281,120]
[392031957,1761114272509,786.29,0.00034281,120]
[392031958,1761114272645,500.0,0.00034281,120]
[392031959,1761114272704,603.29,0.00034281,120]
[392031960,1761114272783,786.29,0.00034281,120]
[392031961,1761114272869,500.0,0.00034281,120]
[392031962,1761114272938,603.29,0.00034281,120]
[392031963,1761114273006,786.29,0.00034281,120]
[392031964,1761114273069,500.0,0.00034281,120]
[392031965,1761114273156,500.0,0.00034281,120]
[392031966,1761114273222,603.29,0.00034281,120]
[392031967,1761114273280,500.0,0.00034281,120]
[392031968,1761114273339,500.0,0.00034281,120]
[392031969,1761114273405,786.29,0.00034281,120]
[392031970,1761114273463,500.0,0.00034281,120]
[392031971,1761114273547,500.0,0.00034281,120]
[392031972,1761114273610,603.29,0.00034281,120]
[392031973,1761114273672,505.77489937,0.00034281,120]
[392031974,1761114273730,786.29,0.00034281,120]
[392031975,1761114273789,500.0,0.00034281,120]
[392031976,1761114273849,500.0,0.00034281,120]
[392031977,1761114273936,408.95,0.00034281,120]
[392031978,1761114274001,603.29,0.00034281,120]
[392031979,1761114274075,786.29,0.00034281,120]
[392031980,1761114274137,279.46598236,0.00034281,120]
[392031981,1761114274221,500.0,0.00034281,120]
[392031982,1761114274283,603.29,0.00034281,120]
[392031983,1761114274338,786.48917615,0.00034281,120]
[392031984,1761114274392,500.0,0.00034281,120]
[392031985,1761114274473,603.29,0.00034281,120]
[392031986,1761114274558,500.0,0.00034281,120]
[392031987,1761114274714,603.29,0.00034281,120]
[392031988,1761114274787,500.0,0.00034281,120]
[392031989,1761114274879,603.29,0.00034281,120]
[392031990,1761114275045,500.0,0.00034281,120]
[392031991,1761114275228,603.29,0.00034281,120]
[392031992,1761114275311,500.0,0.00034281,120]
[392031993,1761114275395,603.29,0.00034281,120]
[392031994,1761114275472,500.0,0.00034281,120]
[392031995,1761114275557,603.29,0.00034281,120]
[392031996,1761114275619,500.0,0.00034281,120]
[392031997,1761114275702,500.0,0.00034281,120]
[392031998,1761114275765,603.29,0.00034281,120]
[392031999,1761114275825,500.0,0.00034281,120]
[392032000,1761114275883,500.0,0.00034281,120]
[392032001,1761114275974,603.29,0.00034281,120]
[392032002,1761114276054,500.0,0.00034281,120]
[392032003,1761114276418,500.0,0.00034281,120]
[392032004,1761114276474,603.29,0.00034281,120]
[392032005,1761114276528,500.0,0.00034281,120]
[392032006,1761114276583,500.0,0.00034281,120]
[392032007,1761114276669,500.0,0.00034281,120]
[392032008,1761114276726,603.29,0.00034281,120]
[392032009,1761114276781,500.0,0.00034281,120]
[392032010,1761114276838,500.0,0.00034281,120]
[392032011,1761114276942,500.0,0.00034281,120]
[392032012,1761114277094,500.0,0.00034281,120]
[392032013,1761114277161,603.29,0.00034281,120]
[392032014,1761114277245,500.0,0.00034281,120]
[392032015,1761114277307,500.0,0.00034281,120]
[392032016,1761114277364,510.17,0.00034281,120]
[392032017,1761114277420,500.0,0.00034281,120]
[392032018,1761114277481,603.29,0.00034281,120]
[392032019,1761114277574,500.0,0.00034281,120]
[392032020,1761114277639,500.0,0.00034281,120]
[392032021,1761114277696,603.29,0.00034281,120]
[392032022,1761114277823,500.0,0.00034281,120]
[392032023,1761114277885,603.29,0.00034281,120]
[392032024,1761114277970,500.0,0.00034281,120]
[392032025,1761114278039,461.92845338,0.00034281,120]
[392032026,1761114278118,603.29,0.00034281,120]
[392032027,1761114278205,500.0,0.00034281,120]
[392032028,1761114278279,603.29,0.00034281,120]
[392032029,1761114278367,500.0,0.00034281,120]
[392032030,1761114278425,603.39397348,0.00034281,120]
[392032031,1761114278509,500.0,0.00034281,120]
[392032032,1761114278931,376.25356253,0.00034281,120]
[392032033,1761114279089,546.02113664,0.00034281,120]
[392032034,1761114280092,500.0,0.00034281,120]
[392032035,1761114280184,500.0,0.00034281,120]
[392032036,1761114280267,500.0,0.00034281,120]
[392032037,1761114280341,696.59,0.00034281,120]
[392032038,1761114280447,500.0,0.00034281,120]
[392032039,1761114280502,500.0,0.00034281,120]
[392032040,1761114280569,500.0,0.00034281,120]
[392032041,1761114280627,696.59,0.00034281,120]
[392032042,1761114280684,500.0,0.00034281,120]
[392032043,1761114280743,500.0,0.00034281,120]
[392032044,1761114280800,241.08700435,0.00034281,120]
[392032045,1761114280865,500.0,0.00034281,120]
[392032046,1761114280934,500.0,0.00034281,120]
[392032047,1761114280996,696.59,0.00034281,120]
[392032048,1761114281058,500.0,0.00034281,120]
[392032049,1761114281123,513.36340645,0.00034281,120]
[392032050,1761114281183,500.0,0.00034281,120]
[392032051,1761114281241,500.0,0.00034281,120]
[392032052,1761114281512,696.59,0.00034281,120]
[392032053,1761114281566,500.0,0.00034281,120]
[392032054,1761114281621,500.0,0.00034281,120]
[392032055,1761114281672,211.52768281,0.00034281,120]
[392032056,1761114281728,500.0,0.00034281,120]
[392032057,1761114281780,696.59,0.00034281,120]
[392032058,1761114281833,500.0,0.00034281,120]
[392032059,1761114281889,500.0,0.00034281,120]
[392032060,1761114281953,500.0,0.00034281,120]
[392032061,1761114282011,500.0,0.00034281,120]
[392032062,1761114282088,696.59,0.00034281,120]
[392032063,1761114282173,432.62047109,0.00034281,120]
[392032064,1761114282250,500.0,0.00034281,120]
[392032065,1761114282315,696.59,0.00034281,120]
[392032066,1761114282385,159.37116295,0.00034281,120]
[392032067,1761114282559,500.0,0.00034281,120]
[392032068,1761114282617,696.59,0.00034281,120]
[392032069,1761114282734,500.0,0.00034281,120]
[392032070,1761114282852,696.59,0.00034281,120]
[392032071,1761114282916,500.0,0.00034281,120]
[392032072,1761114282976,696.59,0.00034281,120]
[392032073,1761114283067,500.0,0.00034281,120]
[392032074,1761114283126,696.59,0.00034281,120]
[392032075,1761114283187,500.0,0.00034281,120]
[392032076,1761114283255,696.59,0.00034281,120]
[392032077,1761114283312,500.0,0.00034281,120]
[392032078,1761114283366,696.59,0.00034281,120]
[392032079,1761114283509,501.69010981,0.00034281,120]
[392032080,1761114283613,696.59,0.00034281,120]
[392032081,1761114283866,696.59,0.00034281,120]
[392032082,1761114284095,696.59,0.00034281,120]
[392032083,1761114284152,500.0,0.00034281,120]
[392032084,1761114284222,500.0,0.00034281,120]
[392032085,1761114284303,828.12,0.00034281,120]
[392032086,1761114284359,500.0,0.00034281,120]
[392032087,1761114284419,696.59,0.00034281,120]
[392032088,1761114284478,500.0,0.00034281,120]
[392032089,1761114284542,500.0,0.00034281,120]
[392032090,1761114284599,500.0,0.00034281,120]
[392032091,1761114284658,828.12,0.00034281,120]
[392032092,1761114284723,696.59,0.00034281,120]
[392032093,1761114284782,500.0,0.00034281,120]
[392032094,1761114284844,500.0,0.00034281,120]
[392032095,1761114284911,500.0,0.00034281,120]
[392032096,1761114284989,828.12,0.00034281,120]
[392032097,1761114285057,696.59,0.00034281,120]
[392032098,1761114285118,500.0,0.00034281,120]
[392032099,1761114285178,500.0,0.00034281,120]
[392032100,1761114285240,504.8191455,0.00034281,120]
[392032101,1761114285296,500.0,0.00034281,120]
[392032102,1761114285352,828.12,0.00034281,120]
[392032103,1761114285436,696.59,0.00034281,120]
[392032104,1761114285493,500.0,0.00034281,120]
[392032105,1761114285548,509.1310259,0.00034281,120]
[392032106,1761114285607,500.0,0.00034281,120]
[392032107,1761114285681,828.12,0.00034281,120]
[392032108,1761114285742,696.59,0.00034281,120]
[392032109,1761114285804,500.0,0.00034281,120]
[392032110,1761114285863,500.0,0.00034281,120]
[392032111,1761114285924,828.12,0.00034281,120]
[392032112,1761114285990,696.59,0.00034281,120]
[392032113,1761114286055,500.0,0.00034281,120]
[392032114,1761114286119,828.12,0.00034281,120]
[392032115,1761114286178,696.59,0.00034281,120]
[392032116,1761114286234,269.37609941,0.00034281,120]
[392032117,1761114286335,500.0,0.00034281,120]
[392032118,1761114286452,828.12,0.00034281,120]